fUST/lending_fUST_20260619
["ID","MTS","AMOUNT","RATE_DAILY","PERIOD"]
[425540460,1781803846000,-528.84,0.0002137,2]
[425540472,1781803846000,-500.0,0.00021384,2]
[425540468,1781803846000,-500.0,0.00021384,2]
[425540467,1781803846000,-500.0,0.00021384,2]
[425540486,1781803846000,-23592.08038989,0.00021385,2]
[425540488,1781803846000,-5122.66309693,0.00021385,2]
[425540477,1781803846000,-500.0,0.00021384,2]
[425540482,1781803846000,-500.0,0.00021384,2]
[425540484,1781803846000,-164.01285474,0.00021384,2]
[425540473,1781803846000,-500.0,0.00021384,2]
[425540475,1781803846000,-500.0,0.00021384,2]
[425540480,1781803846000,-500.0,0.00021384,2]
[425540470,1781803846000,-500.0,0.00021384,2]
[425540479,1781803846000,-500.0,0.00021384,2]
[425541157,1781804350000,166.85181234,0.00023087,120]
[425541222,1781805032000,-210.58467664,0.00021183,2]
[425541208,1781805032000,-439.68062403,0.00019157,2]
[425541210,1781805032000,-160.0,0.00020411,2]
[425541209,1781805032000,-352.33529135,0.00020165,2]
[425541211,1781805032000,-160.0,0.00020411,2]
[425541219,1781805032000,-151.0,0.00020469,2]
[425541212,1781805032000,-300.0,0.00020413,2]
[425541214,1781805032000,-957.032,0.00020414,2]
[425541216,1781805032000,-186.0,0.00020414,2]
[425541207,1781805032000,-1697.00923522,0.00018952,2]
[425541226,1781805032000,-500.0,0.00021183,2]
[425541229,1781805032000,-350.81041603,0.00021183,2]
[425541227,1781805032000,-500.0,0.00021183,2]
[425541228,1781805032000,-500.0,0.00021183,2]
[425541220,1781805032000,-160.0,0.00020764,3]
[425541225,1781805032000,-500.0,0.00021183,2]
[425541218,1781805032000,-445.0,0.00020414,2]
[425541213,1781805032000,-1418.0,0.00020414,2]
[425541224,1781805032000,-514.17232604,0.00021183,2]
[425541221,1781805032000,-215.24272444,0.00021127,2]
[425541223,1781805032000,-500.0,0.00021183,2]
[425541236,1781805040000,-149.18958397,0.00021183,2]
[425541235,1781805040000,-500.0,0.00021183,2]
[425541238,1781805040000,-657.695,0.00021184,2]
[425541237,1781805040000,-500.0,0.00021183,2]
[425541239,1781805040000,-2260.83361734,0.00021184,2]
[425541240,1781805040000,-69107.64388894,0.00021184,2]
[425541243,1781805040000,-17682.94880536,0.00021184,2]
[425541241,1781805040000,-8824.38896746,0.00021184,2]
[425541242,1781805040000,-11285.35953066,0.00021184,2]
[425541244,1781805041000,-328.89,0.00021184,2]
[425541509,1781805047000,-3846.15881347,0.00021184,2]
[425541510,1781805047000,-328.805,0.00021184,2]
[425546322,1781805460000,2839.46869173,0.0001,2]
[425546468,1781806231000,-492.45,0.000118,5]
[425546463,1781806231000,-300.0,0.00011799,2]
[425546461,1781806231000,-154.80008885,0.00011799,2]
[425546459,1781806231000,-176.31515978,0.00011799,2]
[425546458,1781806231000,-8674.85728063,0.00011798,2]
[425546456,1781806231000,-198.36689431,0.000115,2]
[425546465,1781806231000,-4214.44582843,0.000118,5]
[425546494,1781806238000,-17520.49150745,0.000118,5]
[425546495,1781806238000,-27015.68892349,0.000118,5]
[425546496,1781806238000,-29299.0568722,0.000118,5]
[425546497,1781806238000,-4894.20764207,0.00012,2]
[425546499,1781806238000,-1593.36508051,0.00013449,2]
[425546500,1781806238000,-1689.72065281,0.00013449,2]
[425546498,1781806238000,-420.0,0.00012955,2]
[425547318,1781806246000,-272.58380062,0.00011799,2]
[425547320,1781806246000,-171.2593883,0.00011799,2]
[425547316,1781806246000,-138.743,0.00011799,2]
[425547291,1781806246000,-361.257,0.00011799,2]
[425550230,1781807432000,-123.33085704,0.00013893,2]
[425550229,1781807432000,-316.79689611,0.00013893,2]
[425550233,1781807432000,-300.0,0.00014612,2]
[425550231,1781807432000,-821.11210409,0.00014175,2]
[425550236,1781807432000,-1296.66822468,0.00014613,2]
[425550232,1781807432000,-373.61513038,0.00014383,7]
[425550235,1781807432000,-9377.44938033,0.00014613,2]
[425550234,1781807432000,-500.0,0.00014612,2]
[425550516,1781807438000,-1654.28937892,0.00014724,2]
[425550515,1781807438000,-7506.78995115,0.00014613,2]
[425550514,1781807438000,-1040.33193334,0.00014613,2]
[425550597,1781807440000,-1396.79185578,0.00014724,2]
[425550601,1781807440000,-254.93680192,0.00015121,2]
[425550599,1781807440000,-192.2736187,0.00015068,2]
[425550603,1781807440000,-957.50288977,0.00015136,3]
[425550605,1781807440000,-420.0,0.00015998,2]
[425550607,1781807440000,-282.97469,0.00016019,2]
[425550609,1781807440000,-589.16,0.0001607,2]
[425550611,1781807440000,-500.0,0.0001607,2]
[425550613,1781807440000,-500.0,0.0001607,2]
[425550689,1781807441000,-151.0,0.00016712,2]
[425550685,1781807441000,-500.0,0.00016712,2]
[425550683,1781807441000,-500.0,0.00016712,2]
[425550703,1781807441000,-151.0,0.00016712,2]
[425550694,1781807441000,-500.0,0.00016712,2]
[425550673,1781807441000,-500.0,0.00016438,2]
[425550674,1781807441000,-172.21,0.00016438,2]
[425550696,1781807441000,-500.0,0.00016712,2]
[425550701,1781807441000,-500.0,0.00016712,2]
[425550698,1781807441000,-151.0,0.00016712,2]
[425550681,1781807441000,-282.97469,0.00016693,2]
[425550679,1781807441000,-229.99,0.00016642,2]
[425550691,1781807441000,-151.0,0.00016712,2]
[425550700,1781807441000,-151.0,0.00016712,2]
[425550687,1781807441000,-500.0,0.00016712,2]
[425550722,1781807441000,-488.490864,0.00016712,2]
[425550718,1781807441000,-2872.803226,0.00016712,2]
[425550707,1781807441000,-2872.803226,0.00016712,2]
[425550708,1781807441000,-2872.803226,0.00016712,2]
[425550705,1781807441000,-151.0,0.00016712,2]
[425550720,1781807441000,-500.0,0.00016712,2]
[425550710,1781807441000,-2872.803226,0.00016712,2]
[425550712,1781807441000,-2872.803226,0.00016712,2]
[425550727,1781807441000,-488.490864,0.00016712,2]
[425550726,1781807441000,-488.490864,0.00016712,2]
[425550724,1781807441000,-488.490864,0.00016712,2]
[425550713,1781807441000,-2872.803226,0.00016712,2]
[425550729,1781807441000,-488.490864,0.00016712,2]
[425550715,1781807441000,-2872.803226,0.00016712,2]
[425550693,1781807441000,-500.0,0.00016712,2]
[425550669,1781807441000,-500.0,0.00016438,2]
[425550620,1781807441000,-500.0,0.0001607,2]
[425550676,1781807441000,-214.33249593,0.00016442,2]
[425550731,1781807441000,-488.490864,0.00016712,2]
[425550618,1781807441000,-500.0,0.0001607,2]
[425550616,1781807441000,-500.0,0.0001607,2]
[425550624,1781807441000,-11245.85491619,0.00016236,2]
[425550628,1781807441000,-500.0,0.00016336,2]
[425550626,1781807441000,-500.0,0.00016336,2]
[425550615,1781807441000,-500.0,0.0001607,2]
[425550622,1781807441000,-979.0802141,0.00016097,3]
[425550629,1781807441000,-393.2007997,0.00016336,2]
[425550631,1781807441000,-500.0,0.00016437,2]
[425550649,1781807441000,-500.0,0.00016438,2]
[425550641,1781807441000,-500.0,0.00016438,2]
[425550650,1781807441000,-500.0,0.00016438,2]
[425550633,1781807441000,-159.0,0.00016438,2]
[425550671,1781807441000,-500.0,0.00016438,2]
[425550635,1781807441000,-500.0,0.00016438,2]
[425550647,1781807441000,-500.0,0.00016438,2]
[425550637,1781807441000,-500.0,0.00016438,2]
[425550643,1781807441000,-500.0,0.00016438,2]
[425550654,1781807441000,-500.0,0.00016438,2]
[425550652,1781807441000,-500.0,0.00016438,2]
[425550639,1781807441000,-500.0,0.00016438,2]
[425550645,1781807441000,-300.0,0.00016438,2]
[425550658,1781807441000,-500.0,0.00016438,2]
[425550661,1781807441000,-500.0,0.00016438,2]
[425550665,1781807441000,-746.95,0.00016438,2]
[425550663,1781807441000,-500.0,0.00016438,2]
[425550667,1781807441000,-291.63259167,0.00016438,2]
[425550659,1781807441000,-500.0,0.00016438,2]
[425550678,1781807441000,-1919.30944051,0.00016612,2]
[425550656,1781807441000,-500.0,0.00016438,2]
[425550717,1781807441000,-2872.803226,0.00016712,2]
[425550831,1781807441000,-500.0,0.00016986,2]
[425550745,1781807441000,-500.0,0.00016712,2]
[425550798,1781807441000,-500.0,0.00016986,2]
[425550806,1781807441000,-500.0,0.00016986,2]
[425550809,1781807441000,-500.0,0.00016986,2]
[425550811,1781807441000,-151.0,0.00016986,2]
[425550813,1781807441000,-2872.803226,0.00016986,2]
[425550827,1781807441000,-488.490864,0.00016986,2]
[425550817,1781807441000,-2872.803226,0.00016986,2]
[425550815,1781807441000,-2872.803226,0.00016986,2]
[425550808,1781807441000,-174.25,0.00016986,2]
[425550824,1781807441000,-488.490864,0.00016986,2]
[425550820,1781807441000,-500.0,0.00016986,2]
[425550819,1781807441000,-2872.803226,0.00016986,2]
[425550826,1781807441000,-488.490864,0.00016986,2]
[425550829,1781807441000,-500.0,0.00016986,2]
[425550804,1781807441000,-500.0,0.00016986,2]
[425550835,1781807441000,-515.67142614,0.00016986,2]
[425550839,1781807441000,-557.54,0.00016986,2]
[425550843,1781807441000,-500.0,0.00016986,2]
[425550841,1781807441000,-746.95,0.00016986,2]
[425550837,1781807441000,-500.0,0.00016986,2]
[425550852,1781807441000,-151.0,0.00017067,2]
[425550848,1781807441000,-987.26104917,0.00017057,3]
[425550845,1781807441000,-200.11,0.00016986,2]
[425550847,1781807441000,-500.0,0.00016986,2]
[425550854,1781807441000,-199.4326952,0.00017068,2]
[425550850,1781807441000,-220.341791,0.00017057,2]
[425550856,1781807441000,-879.3661205,0.00017068,2]
[425550858,1781807441000,-1919.30944048,0.00017084,2]
[425550860,1781807441000,-488.490864,0.00017084,2]
[425550733,1781807441000,-488.490864,0.00016712,2]
[425550833,1781807441000,-500.0,0.00016986,2]
[425550802,1781807441000,-500.0,0.00016986,2]
[425550822,1781807441000,-488.490864,0.00016986,2]
[425550796,1781807441000,-488.490864,0.00016985,2]
[425550800,1781807441000,-500.0,0.00016986,2]
[425550747,1781807441000,-746.95,0.00016712,2]
[425550750,1781807441000,-500.0,0.00016712,2]
[425550752,1781807441000,-500.0,0.00016712,2]
[425550736,1781807441000,-500.0,0.00016712,2]
[425550734,1781807441000,-488.490864,0.00016712,2]
[425550740,1781807441000,-500.0,0.00016712,2]
[425550738,1781807441000,-500.0,0.00016712,2]
[425550743,1781807441000,-500.0,0.00016712,2]
[425550742,1781807441000,-500.0,0.00016712,2]
[425550754,1781807441000,-500.0,0.00016712,2]
[425550758,1781807441000,-446.21556635,0.00016984,2]
[425550760,1781807441000,-500.0,0.00016984,2]
[425550764,1781807441000,-500.0,0.00016984,2]
[425550767,1781807441000,-500.0,0.00016984,2]
[425550749,1781807441000,-160.704059,0.00016712,2]
[425550763,1781807441000,-500.0,0.00016984,2]
[425550776,1781807441000,-500.0,0.00016984,2]
[425550782,1781807441000,-500.0,0.00016984,2]
[425550790,1781807441000,-488.490864,0.00016985,2]
[425550792,1781807441000,-488.490864,0.00016985,2]
[425550786,1781807441000,-500.0,0.00016984,2]
[425550788,1781807441000,-650.0,0.00016984,2]
[425550784,1781807441000,-500.0,0.00016984,2]
[425550794,1781807441000,-488.490864,0.00016985,2]
[425550771,1781807441000,-500.0,0.00016984,2]
[425550778,1781807441000,-500.0,0.00016984,2]
[425550769,1781807441000,-500.0,0.00016984,2]
[425550780,1781807441000,-500.0,0.00016984,2]
[425550773,1781807441000,-443.23153877,0.00016984,2]
[425550775,1781807441000,-500.0,0.00016984,2]
[425550939,1781807442000,-557.32901044,0.00018529,2]
[425550950,1781807442000,-282.97469,0.00018716,2]
[425550931,1781807442000,-589.16,0.00018529,2]
[425550942,1781807442000,-250.0,0.00018542,2]
[425550924,1781807442000,-151.0,0.000185,2]
[425550935,1781807442000,-502.97432414,0.00018529,2]
[425550944,1781807442000,-308.77289812,0.000186,2]
[425550940,1781807442000,-500.0,0.00018529,2]
[425550933,1781807442000,-500.0,0.00018529,2]
[425550929,1781807442000,-1919.30944048,0.000185,2]
[425550922,1781807442000,-151.0,0.000185,2]
[425550919,1781807442000,-11245.85491614,0.00018369,2]
[425550946,1781807442000,-411.83615071,0.000186,2]
[425550937,1781807442000,-500.0,0.00018529,2]
[425550953,1781807442000,-308.77289812,0.000188,2]
[425550964,1781807442000,-151.0,0.0001888,2]
[425550952,1781807442000,-600.0,0.00018722,2]
[425550955,1781807442000,-411.83615071,0.000188,2]
[425550957,1781807442000,-151.0,0.00018879,2]
[425550961,1781807442000,-233.29536,0.00018879,2]
[425550963,1781807442000,-151.0,0.0001888,2]
[425550959,1781807442000,-154.184364,0.00018879,2]
[425550968,1781807442000,-151.0,0.0001888,2]
[425550970,1781807442000,-1004.0,0.0001888,2]
[425550967,1781807442000,-151.0,0.0001888,2]
[425550974,1781807442000,-500.0,0.00018901,2]
[425550978,1781807442000,-154.53340031,0.00018901,2]
[425550976,1781807442000,-151.5,0.00018901,2]
[425550972,1781807442000,-151.5,0.00018901,2]
[425550920,1781807442000,-151.0,0.000185,2]
[425550948,1781807442000,-746.95,0.0001863,2]
[425550915,1781807442000,-248.45041926,0.00018342,2]
[425550986,1781807442000,-500.0,0.00018901,2]
[425550912,1781807442000,-282.97469,0.00018042,2]
[425550867,1781807442000,-222.88051901,0.0001726,2]
[425550863,1781807442000,-488.490864,0.00017084,2]
[425550870,1781807442000,-2872.803226,0.0001726,2]
[425550865,1781807442000,-488.490864,0.00017084,2]
[425550868,1781807442000,-500.0,0.0001726,2]
[425550875,1781807442000,-2872.803226,0.0001726,2]
[425550873,1781807442000,-2872.803226,0.0001726,2]
[425550861,1781807442000,-488.490864,0.00017084,2]
[425550871,1781807442000,-2872.803226,0.0001726,2]
[425550879,1781807442000,-746.95,0.0001726,2]
[425550876,1781807442000,-515.49705911,0.0001726,2]
[425550901,1781807442000,-746.95,0.00017534,2]
[425550883,1781807442000,-11245.85491614,0.00017303,2]
[425550886,1781807442000,-163.253287,0.0001734,2]
[425550906,1781807442000,-262.09579353,0.00017952,2]
[425550885,1781807442000,-151.0,0.0001734,2]
[425550881,1781807442000,-263.526,0.00017275,2]
[425550888,1781807442000,-2872.803226,0.0001734,2]
[425550891,1781807442000,-2872.803226,0.0001734,2]
[425550893,1781807442000,-2872.803226,0.0001734,2]
[425550899,1781807442000,-587.0,0.00017516,2]
[425550895,1781807442000,-2872.803219,0.0001734,2]
[425550897,1781807442000,-282.97469,0.00017368,2]
[425550904,1781807442000,-746.95,0.00017808,2]
[425550908,1781807442000,-1000.65753853,0.00018018,3]
[425550910,1781807442000,-1919.30944048,0.00018028,2]
[425550926,1781807442000,-151.0,0.000185,2]
[425550928,1781807442000,-151.0,0.000185,2]
[425550917,1781807442000,-746.95,0.00018356,2]
[425550913,1781807442000,-746.95,0.00018082,2]
[425550902,1781807442000,-1919.30944048,0.00017556,2]
[425550982,1781807442000,-500.0,0.00018901,2]
[425551031,1781807442000,-411.83615071,0.000193,2]
[425550984,1781807442000,-500.0,0.00018901,2]
[425551025,1781807442000,-589.16,0.00019218,2]
[425551033,1781807442000,-282.97469,0.00019391,2]
[425551034,1781807442000,-11245.85491614,0.00019436,2]
[425551035,1781807442000,-328.82,0.00019438,2]
[425551040,1781807442000,-867.19837035,0.00019568,2]
[425551041,1781807442000,-160.0,0.00019602,2]
[425551042,1781807442000,-8952.819062,0.00019602,2]
[425551045,1781807442000,-202.4,0.00019759,2]
[425551047,1781807442000,-1840.0,0.00019759,2]
[425551050,1781807442000,-457.6100951,0.00019799,2]
[425551043,1781807442000,-17745.638125,0.00019602,2]
[425551048,1781807442000,-326.8999504,0.00019798,2]
[425551051,1781807442000,-326.8999504,0.00019799,2]
[425551046,1781807442000,-445.0,0.00019759,2]
[425551066,1781807442000,-166.5,0.00020317,2]
[425551052,1781807442000,-589.16,0.00019907,2]
[425551057,1781807442000,-161.34,0.00019992,2]
[425551053,1781807442000,-278.342489,0.00019939,2]
[425551054,1781807442000,-189.449317,0.00019939,2]
[425551059,1781807442000,-279.84317846,0.00020007,2]
[425551064,1781807442000,-442.97694056,0.00020283,2]
[425551058,1781807442000,-746.95,0.0002,2]
[425551055,1781807442000,-1022.23486296,0.0001994,3]
[425551060,1781807442000,-162.57,0.00020063,2]
[425551062,1781807442000,-746.95,0.00020273,2]
[425551065,1781807442000,-692.15146962,0.00020283,2]
[425551056,1781807442000,-160.460192,0.0001994,2]
[425551061,1781807442000,-151.0,0.00020096,2]
[425551063,1781807442000,-387.60482299,0.00020283,2]
[425550980,1781807442000,-500.0,0.00018901,2]
[425551044,1781807442000,-746.95,0.00019726,2]
[425551032,1781807442000,-229.72196,0.00019349,2]
[425551049,1781807442000,-325.9444477,0.00019799,2]
[425551028,1781807442000,-385.80730524,0.00019269,2]
[425551029,1781807442000,-602.82391444,0.00019269,2]
[425550989,1781807442000,-500.0,0.00018901,2]
[425550987,1781807442000,-500.0,0.00018901,2]
[425550991,1781807442000,-597.51468312,0.00018901,2]
[425550993,1781807442000,-151.5,0.00018901,2]
[425551002,1781807442000,-589.16,0.00018977,2]
[425550995,1781807442000,-279.98133814,0.00018901,2]
[425550997,1781807442000,-746.95,0.00018904,2]
[425551000,1781807442000,-158.926,0.00018936,2]
[425551007,1781807442000,-1007.47203845,0.00018979,3]
[425551010,1781807442000,-151.0,0.00018979,2]
[425551013,1781807442000,-308.77289812,0.00019,2]
[425551017,1781807442000,-411.83615071,0.000191,2]
[425551014,1781807442000,-27425.30218182,0.00019,2]
[425551020,1781807442000,-160.0,0.00019198,2]
[425551004,1781807442000,-345.90782304,0.00018977,2]
[425551012,1781807442000,-589.16,0.00018999,2]
[425551030,1781807442000,-308.77289812,0.000193,2]
[425551027,1781807442000,-337.58139208,0.00019269,2]
[425551037,1781807442000,-160.0,0.00019566,2]
[425551039,1781807442000,-638.053566,0.00019566,2]
[425551038,1781807442000,-399.026783,0.00019566,2]
[425551023,1781807442000,-308.77289812,0.000192,2]
[425551024,1781807442000,-199.092365,0.0001921,2]
[425551036,1781807442000,-746.95,0.00019452,2]
[425551021,1781807442000,-160.0,0.00019198,2]
[425551016,1781807442000,-411.83615071,0.00019,2]
[425551019,1781807442000,-823.0,0.00019178,2]
[425551015,1781807442000,-151.0,0.00019,2]
[425551018,1781807442000,-746.95,0.00019178,2]
[425551022,1781807442000,-160.0,0.00019198,2]
[425551087,1781807443000,-457.9571401,0.00020621,2]
[425551093,1781807443000,-176.39934624,0.00020903,2]
[425551084,1781807443000,-995.70141814,0.00020621,2]
[425551085,1781807443000,-326.8999503,0.00020621,2]
[425551083,1781807443000,-589.16,0.00020596,2]
[425551090,1781807443000,-171.52573,0.00020867,2]
[425551092,1781807443000,-166.69293693,0.00020903,2]
[425551096,1781807443000,-241.65396109,0.00020998,2]
[425551097,1781807443000,-1152.0,0.00020998,2]
[425551099,1781807443000,-162.542276,0.00021095,2]
[425551091,1781807443000,-1058.08392156,0.00020901,3]
[425551094,1781807443000,-589.16,0.00020906,2]
[425551103,1781807443000,-550.0,0.00021154,2]
[425551080,1781807443000,-746.95,0.00020547,2]
[425551095,1781807443000,-589.16,0.00020906,2]
[425551079,1781807443000,-478.832139,0.00020544,2]
[425551067,1781807443000,-166.69293693,0.00020355,2]
[425551081,1781807443000,-10743.382875,0.00020583,2]
[425551102,1781807443000,-151.0,0.000211,3]
[425551068,1781807443000,-162.380719,0.00020355,2]
[425551070,1781807443000,-559.68635693,0.00020373,2]
[425551073,1781807443000,-1002.0,0.00020379,2]
[425551072,1781807443000,-151.0,0.00020379,2]
[425551075,1781807443000,-156.724,0.00020414,2]
[425551071,1781807443000,-151.0,0.00020379,2]
[425551069,1781807443000,-4736.97199863,0.00020356,2]
[425551076,1781807443000,-221.722,0.00020414,2]
[425551074,1781807443000,-589.16,0.00020413,2]
[425551078,1781807443000,-11245.85491614,0.00020502,2]
[425551088,1781807443000,-227.65,0.00020727,2]
[425551089,1781807443000,-746.95,0.00020821,2]
[425551077,1781807443000,-151.0,0.00020414,2]
[425551082,1781807443000,-720.0,0.00020594,2]
[425551086,1781807443000,-457.9571401,0.00020621,2]
[425551100,1781807443000,-165.084552,0.00021095,2]
[425551125,1781807443000,-589.16,0.00021392,2]
[425551101,1781807443000,-746.95,0.00021095,2]
[425551119,1781807443000,-407.28878289,0.0002135,2]
[425551127,1781807443000,-589.16,0.00021392,2]
[425551124,1781807443000,-589.16,0.00021392,2]
[425551123,1781807443000,-746.95,0.00021369,2]
[425551130,1781807443000,-589.16,0.00021392,2]
[425551128,1781807443000,-589.16,0.00021392,2]
[425551126,1781807443000,-589.16,0.00021392,2]
[425551132,1781807443000,-589.16,0.00021392,2]
[425551131,1781807443000,-589.16,0.00021392,2]
[425551134,1781807443000,-589.16,0.00021392,2]
[425551135,1781807443000,-589.16,0.00021392,2]
[425551136,1781807443000,-589.26462061,0.00021392,2]
[425551133,1781807443000,-589.16,0.00021392,2]
[425551137,1781807443000,-650493.8402866,0.00021412,2]
[425551098,1781807443000,-160.0,0.00021095,2]
[425551122,1781807443000,-798.053565,0.00021353,2]
[425551129,1781807443000,-589.16,0.00021392,2]
[425551120,1781807443000,-1483.74691088,0.0002135,2]
[425551121,1781807443000,-465.47289474,0.0002135,2]
[425551116,1781807443000,-190.74074905,0.0002135,2]
[425551115,1781807443000,-284.60871072,0.0002135,2]
[425551117,1781807443000,-217.98942749,0.0002135,2]
[425551106,1781807443000,-151.0,0.000212,4]
[425551107,1781807443000,-152.0,0.00021203,7]
[425551104,1781807443000,-500.0,0.00021154,2]
[425551112,1781807443000,-370.93672772,0.0002135,2]
[425551105,1781807443000,-450.0,0.00021154,2]
[425551108,1781807443000,-152.0,0.00021203,7]
[425551114,1781807443000,-249.03262188,0.0002135,2]
[425551111,1781807443000,-206.07595984,0.0002135,2]
[425551118,1781807443000,-1030.37979922,0.0002135,2]
[425551109,1781807443000,-589.16,0.00021285,2]
[425551113,1781807443000,-659.4430715,0.0002135,2]
[425551110,1781807443000,-151.0,0.000213,3]
[425551155,1781807446000,-160.0,0.00018783,2]
[425551156,1781807446000,-140.0,0.00018783,2]
[425551373,1781807512000,-500.0,0.00016438,2]
[425551599,1781808638000,-500.0,0.0001485,2]
[425551589,1781808638000,-260.740143,0.0001381,2]
[425551595,1781808638000,-181.47148019,0.00014499,7]
[425551596,1781808638000,-333.0807525,0.00014499,7]
[425551597,1781808638000,-260.740143,0.00014777,2]
[425551594,1781808638000,-333.0807525,0.00014096,7]
[425551591,1781808638000,-5416.437081,0.00014051,2]
[425551600,1781808638000,-12498.798118,0.00014851,2]
[425551593,1781808638000,-181.47148019,0.00014096,7]
[425551588,1781808638000,-333.0807525,0.00013694,7]
[425551592,1781808638000,-2073.61078389,0.00014096,2]
[425551590,1781808638000,-300.0,0.0001405,2]
[425551586,1781808638000,-333.0807525,0.00013425,7]
[425551587,1781808638000,-181.47148019,0.00013694,7]
[425551585,1781808638000,-181.47148019,0.00013425,7]
[425551583,1781808638000,-4566.54188993,0.00012763,2]
[425551584,1781808638000,-151.0,0.00013022,2]
[425551605,1781808638000,-420.0,0.00015392,2]
[425551601,1781808638000,-329.5626727,0.00014945,2]
[425551604,1781808638000,-621.93841328,0.00015075,2]
[425551598,1781808638000,-500.0,0.0001485,2]
[425551613,1781808638000,-500.0,0.00015603,2]
[425551602,1781808638000,-181.47148023,0.00015036,7]
[425551622,1781808638000,-500.0,0.00015603,2]
[425551621,1781808638000,-500.0,0.00015603,2]
[425551623,1781808638000,-4851.96037647,0.00015604,2]
[425551620,1781808638000,-500.0,0.00015603,2]
[425551618,1781808638000,-500.0,0.00015603,2]
[425551616,1781808638000,-500.0,0.00015603,2]
[425551617,1781808638000,-301.68902653,0.00015603,2]
[425551615,1781808638000,-500.0,0.00015603,2]
[425551619,1781808638000,-500.0,0.00015603,2]
[425551612,1781808638000,-500.0,0.00015603,2]
[425551606,1781808638000,-167.257912,0.00015457,2]
[425551603,1781808638000,-333.0807525,0.00015036,7]
[425551624,1781808638000,-9117.19283228,0.00015807,2]
[425551611,1781808638000,-500.0,0.00015603,2]
[425551614,1781808638000,-500.0,0.00015603,2]
[425551607,1781808638000,-163.602384,0.00015457,2]
[425551608,1781808638000,-166.97,0.00015502,2]
[425551610,1781808638000,-500.0,0.00015603,2]
[425551609,1781808638000,-288.96289384,0.00015603,2]
[425551636,1781808646000,-500.0,0.00016438,2]
[425551657,1781808646000,-4851.96037647,0.00016882,2]
[425551654,1781808646000,-500.0,0.00016765,2]
[425551652,1781808646000,-500.0,0.00016438,2]
[425551646,1781808646000,-500.0,0.00016438,2]
[425551644,1781808646000,-500.0,0.00016438,2]
[425551640,1781808646000,-500.0,0.00016438,2]
[425551634,1781808646000,-520.53513661,0.00016438,2]
[425551642,1781808646000,-500.0,0.00016438,2]
[425551645,1781808646000,-500.0,0.00016438,2]
[425551630,1781808646000,-491.67195734,0.00015807,2]
[425551643,1781808646000,-500.0,0.00016438,2]
[425551641,1781808646000,-552.55,0.00016438,2]
[425551637,1781808646000,-500.0,0.00016438,2]
[425551638,1781808646000,-409.01964356,0.00016438,2]
[425551635,1781808646000,-500.0,0.00016438,2]
[425551633,1781808646000,-520.19904536,0.00016438,2]
[425551631,1781808646000,-286.70728708,0.00015807,2]
[425551632,1781808646000,-524.46093093,0.00016438,2]
[425551629,1781808646000,-300.0,0.00015807,2]
[425551659,1781808646000,-500.0,0.0001726,2]
[425551639,1781808646000,-500.0,0.00016438,2]
[425551647,1781808646000,-567.10651318,0.00016438,2]
[425551656,1781808646000,-587.0,0.00016862,2]
[425551660,1781808646000,-500.0,0.00017533,2]
[425551675,1781808646000,-500.0,0.00018599,2]
[425551667,1781808646000,-720.0,0.00018442,2]
[425551668,1781808646000,-823.0,0.00018472,2]
[425551670,1781808646000,-500.0,0.00018599,2]
[425551672,1781808646000,-500.0,0.00018599,2]
[425551671,1781808646000,-500.0,0.00018599,2]
[425551669,1781808646000,-391.24425328,0.00018599,2]